Cogmind - Beta 16.1 @@@ ROGUE MODE // 2026.02.11 @ 14:10:20 Player: shapeshifter Result: Destroyed by G-47 Trooper with Particle Gun Performance ------------- Evolutions (0) 0 Regions Visited (2) 400 Robots Destroyed (15) 75 Value Destroyed (255) 255 Prototype IDs (13) 260 Alien Tech Used (0) 0 Bonus (0) 0 TOTAL SCORE: 990 Bonus ------- None Cogmind --------- Core Integrity 0/250 Matter 201/300 Energy 155/180 System Corruption 0% Temperature Cool (15) Movement Rolling (105) Ox1 Location -10/Subcaves Parts ------- > --- POWER (1) -------- Meta Core > --- PROPULSION (2+1) - Wheel Compact Wheel > --- UTILITY (2+1) ---- High-capacity Storage Unit > --- WEAPON (2+1) ----- Assault Rifle Light Assault Rifle > --- INVENTORY (20) --- Small Storage Unit Large Matter Pod (133) Improved Terrain Scanner Tractor Beam 1B-0RG's Assimilator Peak State ------------ > --- POWER ------------ Meta Core > --- PROPULSION ------- Wheel Compact Wheel > --- UTILITY ---------- High-capacity Storage Unit > --- WEAPON ----------- Assault Rifle Light Assault Rifle > --- INVENTORY -------- Small Storage Unit Large Matter Pod Improved Terrain Scanner Tractor Beam 1B-0RG's Assimilator [Rating: 25] Favorites ----------- Power Light Ion Engine Engine Light Ion Engine Power Core Meta Core Propulsion Light Treads Treads Light Treads Wheel Wheel Utility Small Storage Unit Device Seismic Detector Storage Small Storage Unit Weapon Medium Laser Energy Gun Medium Laser Ballistic Gun Assault Rifle Build | -11 -10 -10 ------- Run | Yrd Mat Sub Slots Evolved . | . . . Power . | . . . Propulsion . | . . . Utility . | . . . Weapon . | . . . Parts Attached 16 | 8 2 6 Power 3 | 1 1 1 Engine 2 | 1 1 . Core 1 | . . 1 Reactor . | . . . Propulsion 4 | 2 . 2 Treads 2 | 2 . . Leg . | . . . Wheel 2 | . . 2 Hover . | . . . Flight . | . . . Utility 3 | 2 . 1 Device 1 | 1 . . Storage 2 | 1 . 1 Processor . | . . . Hackware . | . . . Protection . | . . . Artifact . | . . . Weapon 6 | 3 1 2 Energy Gun 2 | 2 . . Energy Cannon . | . . . Ballistic Gun 4 | 1 1 2 Ballistic Cannon . | . . . Launcher . | . . . Special Weapon . | . . . Impact Weapon . | . . . Slashing Weapon . | . . . Piercing Weapon . | . . . Special Melee Weapon . | . . . Unidentified Prototypes . | . . . Parts Lost 6 | . . 6 Power 1 | . . 1 Propulsion 2 | . . 2 Utility 1 | . . 1 Weapon 2 | . . 2 Highest Loss Streak 6 | . . 6 To Critical Strikes . | . . . Average Backups 6 | 3 6 8 Power . | . . . Propulsion 1 | 1 2 1 Utility 2 | . 2 4 Weapon 1 | . 1 1 Tool/Special . | . . . Unused Backups 4 | . . 4 Power . | . . . Propulsion . | . . . Utility 3 | . . 3 Weapon . | . . . Tool/Special 1 | . . 1 Average Slot Usage (%) 99 | . 100 97 Engine 13 | . 14 12 Treads 27 | . 28 26 Device 13 | . 14 13 Storage 14 | . 14 14 Energy Gun 10 | . 14 5 Ballistic Gun 17 | . 14 22 Peak Build Rating 25 | 7 8 25 Average Rating 8 | 5 7 12 On Entrance 5 | . 7 8 Avg Prop Armor Cover (%) . | . . . Naked Turns . | . . . Heaviest Build 50 | 12 13 50 Greatest Support 40 | 40 40 40 Greatest Overweight (x) 1 | . . 1 Average Overweight (x) . | . . . Largest Inventory Capacity 20 | 8 8 20 Average Capacity 9 | 7 8 14 Most Carried 15 | 6 8 15 Average Carried 7 | 4 6 10 Final Capacity 20 | 8 8 20 Final Carried 9 | 5 8 9 Class Distribution -------------------- 100% | Mutant Dominant Class ---------------- Mutant | -10/Materials Mutant | -10/Subcaves Resources | -11 -10 -10 ----------- Run | Yrd Mat Sub Matter Collected 556 | 297 78 181 Remotely . | . . . Salvage Created 489 | 216 180 93 Parts 34 | 21 7 6 Haulers Intercepted . | . . . Recyclers Shooed . | . . . Parts Field Recycled . | . . . Retrieved Matter . | . . . Parts Self-Destructed . | . . . Prevented . | . . . Parts Restored . | . . . Kills | -11 -10 -10 ------- Run | Yrd Mat Sub Combat Hostiles Destroyed 7 | . 5 2 Guns 7 | . 5 2 Classes Destroyed 6 | 2 3 1 Tunneler 6 | 6 . . Recycler 1 | 1 . . Watcher 1 | . 1 . Swarmer 3 | . 3 . Grunt 2 | . 2 . Subdweller 2 | . . 2 Best Kill Streak 3 | 3 3 1 Combat Bots Only 3 | . 3 1 Max Kills in Single Turn 1 | 1 1 1 Gunslinging . | . . . Exploded . | . . . Melee . | . . . Uniques/NPCs Destroyed . | . . . Combat | -11 -10 -10 -------- Run | Yrd Mat Sub Hostile Shots Fired 51 | . 19 32 Missed 11 | . 3 8 Hits 40 | . 16 24 Projectile 40 | . 16 24 AOE 8 | . . 8 Critical Strikes 1 | . . 1 Damage Taken 939 | . 190 749 Core 251 | . 50 201 Absorbed by Shields . | . . . Core Remaining (%) 100 | 100 . . Volleys Fired 67 | 23 10 34 Largest 2 | 2 2 2 Hottest 90 | 90 70 70 Shots Fired 114 | 46 20 48 Gun 114 | 46 20 48 Cannon . | . . . Launcher . | . . . Special . | . . . Kinetic 74 | 17 10 47 Thermal 40 | 29 10 1 Explosive . | . . . Electromagnetic . | . . . Robot Hit Streak 10 | 7 7 10 Robot Miss Streak 3 | 3 1 2 Penetration Max . | . . . Secondary Targets 2 | . 1 1 Max Gunslinging Chain 1 | . 1 1 Shots Hit Robots 55 | 23 13 19 Core Hits 24 | 10 9 5 Critical Kills . | . . . Critical Parts Destroyed 1 | . . 1 Critical Strikes 2 | . 1 1 Burn 1 | . 1 . Destroy 1 | . . 1 Melee Attacks . | . . . Impact . | . . . Slashing . | . . . Piercing . | . . . Sneak Attacks . | . . . Combat Hostiles . | . . . Follow-up Attacks . | . . . Damage Inflicted 711 | 262 159 290 Guns 711 | 262 159 290 Cannons . | . . . Explosions . | . . . Melee . | . . . Ramming . | . . . Kinetic 424 | 102 32 290 Thermal 287 | 160 127 . Explosive . | . . . Electromagnetic . | . . . Impact . | . . . Slashing . | . . . Piercing . | . . . Highest Corruption . | . . . Average Corruption . | . . . Corruption Purged . | . . . Corruption Blocked . | . . . Overload Shots . | . . . Overflow Damage . | . . . Projectiles . | . . . Explosions . | . . . Melee . | . . . Knockbacks . | . . . Impact . | . . . Kinetic . | . . . Secondary . | . . . Self-Inflicted Damage . | . . . Shots . | . . . Rammed . | . . . Targets Rammed . | . . . Kicked . | . . . Crushed . | . . . Highest Temperature 129 | 120 129 7 Average Temperature 45 | 40 59 7 Received Heat Transfer 198 | . 93 105 Siege Activations . | . . . Martial Activations . | . . . Shielding Activations . | . . . Robots Disrupted . | . . . Combat Hostiles . | . . . Robots Corrupted . | . . . Combat Hostiles . | . . . Parts Fried . | . . . Impact Corruptions . | . . . Robots Melted . | . . . Combat Hostiles . | . . . Parts Melted 1 | . 1 . Heat Transferred 901 | 457 444 . Parts Sabotaged . | . . . Parts Stolen . | . . . Parts Stripped . | . . . Power Chain Reactions . | . . . Alert | -11 -10 -10 ------- Run | Yrd Mat Sub Maximum Alert Level . | . . . Low Security (%) 100 | 100 100 . Level 1 . | . . . Level 2 . | . . . Level 3 . | . . . Level 4 . | . . . Level 5 . | . . . High Security . | . . . Max Security . | . . . Peak Influence 90 | 5 90 . Initial . | . . . Average 13 | 1 18 . Influence Increases 192 | 35 157 . Destroy 0b10 Robot/C 100 | . 100 . Destroy 0b10 Robot/NC 40 | 35 5 . Destroy Leader 22 | . 22 . Lose Combat Pursuer 30 | . 30 . Influence Decreases 192 | 35 157 . Time Decay 192 | 35 157 . Squads Dispatched . | . . . Investigation . | . . . Extermination . | . . . Reinforcement . | . . . Assault . | . . . Garrison . | . . . Intercept . | . . . Searches Triggered . | . . . Construction Impeded . | . . . Haulers Reinforced . | . . . Active Scanning Responses . | . . . Cargo Convoy Interrupts . | . . . Stealth | -11 -10 -10 --------- Run | Yrd Mat Sub Distress Signals 1 | . 1 . Communications Jammed . | . . . Distress Signals . | . . . Times Spotted 11 | . 7 4 Peak Tracking Total 4 | . 3 4 Tactical Retreats 1 | . 1 . Traps | -11 -10 -10 ------- Run | Yrd Mat Sub Traps Triggered . | . . . Indirectly . | . . . Trap Hack Attempts . | . . . Triggered . | . . . Disarmed . | . . . Reprogrammed . | . . . Reused . | . . . Traps Extracted . | . . . Installed . | . . . Triggered . | . . . Machines | -11 -10 -10 ---------- Run | Yrd Mat Sub Machines Disabled 1 | . . 1 Max in Single Turn 1 | . . 1 Machines Repaired . | . . . Machines Dismantled . | . . . Machines Sabotaged . | . . . Overloaded Fab Kills . | . . . Hacking | -11 -10 -10 --------- Run | Yrd Mat Sub Machines Accessed 3 | . 2 1 Terminals 1 | . 1 . Fabricators . | . . . Repair Stations . | . . . Recycling Units 1 | . 1 . Scanalyzers . | . . . Garrison Access . | . . . Total Hacks 5 | . 4 1 Successful 1 | . . 1 Failed 4 | . 4 . Catastrophic . | . . . Database Lockouts . | . . . Manual . | . . . Terminals 2 | . 2 . Fabricators . | . . . Repair Stations . | . . . Recycling Units 2 | . 2 . Scanalyzers . | . . . Garrison Access . | . . . Terminal Hacks 1 | . . 1 Proto ID Catalog 1 | . . 1 Fabricator Hacks . | . . . Repair Station Hacks . | . . . Recycling Unit Hacks . | . . . Scanalyzer . | . . . Garrison Access Hacks . | . . . Unauthorized Hacks . | . . . Terminals . | . . . Fabricators . | . . . Repair Stations . | . . . Recycling Units . | . . . Scanalyzers . | . . . Garrison Access . | . . . Data Cores Recovered . | . . . Used . | . . . Hacking Detections 2 | . 2 . Full Trace Events . | . . . Feedback Events . | . . . Feedback Blocked . | . . . Robot Schematics Acquired . | . . . Robots Built . | . . . Authchips . | . . . Time . | . . . Total Robot Build Rating . | . . . Part Schematics Acquired . | . . . Parts Built . | . . . Authchips . | . . . Time . | . . . Total Part Build Rating . | . . . Part Studies Acquired . | . . . Parts Repaired . | . . . Time . | . . . Parts Recycled . | . . . Recycled Matter . | . . . Retrieved Matter . | . . . Retrieved Components . | . . . Parts Scanalyzed . | . . . Part Schematics Acquired . | . . . Parts Damaged . | . . . Bothacking | -11 -10 -10 ------------ Run | Yrd Mat Sub Used RIF Installer . | . . . Robots Hacked . | . . . Non-combat . | . . . Combat . | . . . Robot Hacks Applied . | . . . Relay Couplers Released . | . . . Fabnet Peak Effective % . | . . . Robots Rewired . | . . . Allies Hacked . | . . . Hacks Repelled . | . . . Allies | -11 -10 -10 -------- Run | Yrd Mat Sub Total Allies . | . . . Largest Group . | . . . Highest-Rated Group . | . . . Highest-Rated Ally . | . . . Total Orders . | . . . Ally Attacks . | . . . Total Damage . | . . . Kills . | . . . Allies Corrupted . | . . . Allies Melted . | . . . Intel | -11 -10 -10 ------- Run | Yrd Mat Sub Active Infowar (turns) 1015 | 10 631 374 Seismic 1015 | 10 631 374 Robot Analysis Total . | . . . Derelict Logs Recovered . | . . . Drone Launches . | . . . Drone Recoveries . | . . . Exploration | -11 -10 -10 ------------- Run | Yrd Mat Sub Turns Passed 1275 | 260 631 384 Spaces Moved 624 | 126 354 144 Core 24 | 24 . . Treads 600 | 102 354 144 Legs . | . . . Wheels . | . . . Hover . | . . . Flight . | . . . Fastest Speed 50 | 50 160 160 Average Speed 162 | 139 160 189 Slowest Speed 240 | 160 160 240 Overloaded Moves . | . . . Propulsion Burnouts . | . . . Robots Hopped . | . . . Potential Cave-ins . | . . . Cave-ins Triggered . | . . . Exploration Rate (%) 22 | 6 51 10 Regions Visited 2 Branch Regions 1 Pre-discovered Areas . | . . . Known Exits Taken . | . . . Unknown Exits Taken 2 | 1 1 . Scrap Searched 3 | . . 3 Spaces Dug . | . . . Terrain Destroyed . | . . . Melee . | . . . Projectile . | . . . AOE . | . . . Terrain Rammed . | . . . Walls Destroyed . | . . . Machines Disabled . | . . . Actions | -11 -10 -10 --------- Run | Yrd Mat Sub Total 778 | 168 399 211 Wait 49 | . 29 20 Move 622 | 125 353 144 Hop . | . . . Pick Up 19 | 12 4 3 Fast Attach 1 | . . 1 Attach 12 | 7 . 5 Detach . | . . . Swap 5 | 1 2 2 Drop 3 | . 1 2 Fire 67 | 23 10 34 Melee . | . . . Ram . | . . . Kick . | . . . Crush . | . . . Escape Stasis . | . . . Rewire . | . . . Trap . | . . . Miscellaneous . | . . . Route ------- -11/Scrapyard -10/Materials (discovered 3 exits: [*Mat] / [*Min] / *Sub) -10/Subcaves History --------- Turn | Location | Event 3 | -11/Scrapyard | Discovered new exit (range 15) 261 | -11/Scrapyard | Entered Materials 310 | -10/Materials | Build established: Mutant 387 | -10/Materials | Discovered new exit (range 16) 655 | -10/Materials | Discovered new exit (range 10) 875 | -10/Materials | Discovered new exit (range 10) 892 | -10/Materials | Entered Subcaves 1066 | -10/Subcaves | Visited 4L-MR0's lab 1081 | -10/Subcaves | Found Prototype Special Melee Weapon 1111 | -10/Subcaves | Found Prototype Power Core 1122 | -10/Subcaves | Identified Meta Core 1263 | -10/Subcaves | Core integrity fell below 50% 1267 | -10/Subcaves | Core integrity fell below 20% 1270 | -10/Subcaves | Attached Meta Core, gained temporary slots: Propulsion, Utility, Weapon 1276 | -10/Subcaves | Destroyed by G-47 Trooper with Particle Gun Last Messages --------------- Source. 01238_ Acquired 49 matter. 01243_ Lgt. Ion Engine destroyed. 01244_ Battle Rifle destroyed. 01253_ Lgt. Treads destroyed. 01257_ Hvy. Battle Rifle destroyed. 01260_ C4-IDP(R) suffers critical hit (Destroy). 01260_ Destroyed Sub. Monowheel. 01263_ C4-IDP(R) destroyed. 01263_ Switching to secondary target: P3-ERT(R). 01266_ Seismic Detector destroyed. 01268_ Subatomizers dissect the Sub. Shrapnel Launcher. 01270_ Core temporarily expanded with Propulsion slot. 01270_ Core temporarily expanded with Utility slot. 01270_ Core temporarily expanded with Weapon slot. 01272_ Critical hit (Burn: +37). Map ----- +----------------------------------------------------+ | ?????????????????????????????????????????????????? | | ?????????????????????????????????????????????????? | | ?????????????????????????????????????????????????? | | ?????????????????????????????????????????????????? | | ?????????????????????????????????????????????????? | | ?????????????????????????????????????????????????? | | ?????????????????????????????????????????????????? | | ?????????????????????????????????????????????????? | | ?????????????????????????????????????????????????? | | ?????????????????????????????????????????????????? | | ?????????????????????????????????????????????????? | | ??????#############??????????????????????????????? | | ??????# "#"""""" "#??????????????????????????????? | | ??????# "X" "#?????????????R ??????????????? | | ??????### #####??????????[%&#??????????????? | | ?????#### + "#?????????#&! ???????????????? | | ?????#"########### "#????????# #???????????????? | | ?????# ####???#### "#???????# #???????????????? | | ?????#"[" #####" "#??????# ##??????????????? | | ?????##" # [ "#?????# ##?????????????? | | ??????# "## "####### #?????????????? | | ??????####" ##"" ### #?????????????? | | ????##?###" "###### #?????????????? | | ????# ## " ### #??????????????? | | ????# #????????????????? | | ###### @ ;#????????????????? | | # #?# ## ;#????????????????? | | # ### ########## g ????????????? | | #????????## g #???????????? | | #?????????#; ; ##???????????? | | #?????????#### ;;;#####????????????? | | ##???????????## ### #??????????????? | | ######???????#######??? ??????????????? | | ##???????????????? ?????????????? | | #??????????????? ? ???????????? | | #### ##?????????????? #??#????????????? | | #### ##???####?????? #???????????????? | | ## ##### #??#### #???????????????? | | # #### #???????????????? | | ## ### ## ## #???????????????? | | ?## ##?###### ### #???????????????? | | ??## #????### ## ## #???????????????? | | ???## #????# ###### ??????????????? | | ????# ##????### ### ##????? ????????????? | | ????###???????## ###?#####?????? ### #???????????? | | ???????????????###??????????????##???#???????????? | | ?????????????????????????????????????????????????? | | ?????????????????????????????????????????????????? | | ?????????????????????????????????????????????????? | | ?????????????????????????????????????????????????? | +----------------------------------------------------+ Best States ------------- Heat Dissipation 25 Energy Generation 17 Energy Capacity 180 Matter Stores 300 Matter Capacity 300 Sight Range 16 Terrain Scan Density 10 Evasion (%) 50 Recoil Reduction 2 Item Schematics ----------------- None Robot Schematics ------------------ None Fabricated ------------ Nothing Repaired ---------- Nothing Studied --------- None Alien Tech Used ----------------- None Achievements -------------- None Challenges ------------ None Game ------ Seed ArcsightTargetPrototype Manual? 0 Play Time 00:05:20 Cumulative 693.5 hours Start 2026.02.11 @ 14:06:15 End 2026.02.11 @ 14:10:20 Sessions 1 Manual Loads 0 Difficulty Rogue Special Mode None Game No. 861 Rogue 861 Adventurer 0 Explorer 0 Win Type - Total 25 Types 12/1/3/3/2/0/2/2/0/0 Lore% 96 Gallery% 91 Achievement% 82 Wizard Run 0 Options --------- Layout 2 ASCII 0 Keyboard 0 Movement Mouse Keybinds 0 Fullscreen 2 Font 24/Tamsyn Map View 50x44 Zoom Use 0% Tactical HUD 1 Map Filters NONE Filters NONE Steam 1 RUN: 04820b54-8d02-4bbe-a4a3-55c5293e8b81